[Event "GER-chT Youth Countries 2018"]
[Site "Wurzburg"]
[Date "2018.10.05"]
[Round "5"]
[White "Lutz, Adam"]
[Black "Bardorz, Jana"]
[Result "1-0"]
[ECO "C45"]
[WhiteElo "1787"]
[BlackElo "1810"]
[Annotator "NA RC"]
[PlyCount "91"]
[EventDate "2018.10.03"]
[EventType "team-tourn"]
[EventCountry "GER"]
[SourceTitle "playchess.com"]
[Source "ChessBase"]
[SourceQuality "1"]
[TimeControl "40/5400+30:1800+30"]

1. e4 {[%emt 0:00:00]} e5 {[%emt 0:00:00]} 2. Nf3 {[%emt 0:00:00]} Nc6 {[%emt 0:00:00]} 3. d4 {[%emt 0:00:00]} exd4 {[%emt 0:00:00]} 4. Nxd4 {[%emt 0:00:07]} Bc5 {[%emt 0:00:00]} 5. Nxc6 {[%emt 0:00:50]} Qf6 {[%emt 0:01:48]} 6. Qf3 {[%emt 0:00:32]} Qxf3 {[%emt 0:03:49]} 7. gxf3 {[%emt 0:00:12]} dxc6 {[%emt 0:03:45]} 8. Rg1 {[%emt 0:01:33]} g6 {[%emt 0:02:42]} 9. Bc4 {[%emt 0:01:27]} f5 {[%emt 0:06:58]} 10. Bf4 {[%emt 0:01:26]} Bd6 {[%emt 0:07:42]} 11. e5 {[%emt 0:02:05]} Bb4+ {[%emt 0:03:52]} 12. Nd2 {[%emt 0:01:37]} Ne7 {[%emt 0:03:28]} 13. O-O-O {[%emt 0:04:09]} Nd5 {[%emt 0:03:55]} 14. Bg5 $11 {[%emt 0:05:36]} Be7 {[%emt 0:05:35]} 15. Nb3 {[%emt 0:02:41]} Bxg5+ {[%emt 0:03:22]} 16. Rxg5 {[%emt 0:00:15]} Nb6 {[%emt 0:01:11]} 17. Be2 {[%emt 0:01:09]} Bd7 {[%emt 0:03:16]} 18. Nc5 {[%emt 0:01:10]} O-O-O {[%emt 0:04:54]} 19. e6 {[%emt 0:00:56]} Be8 {[%emt 0:00:52]} 20. Rxd8+ {[%emt 0:00:27]} Kxd8 {[%emt 0:00:09]} 21. Nxb7+ {[%emt 0:00:08]} Ke7 {[%emt 0:00:57]} 22. Nc5 {[%emt 0:00:47]} Kd6 {[%emt 0:02:23]} 23. b4 {[%emt 0:00:45]} Nd5 {[%emt 0:01:48]} 24. a3 {[%emt 0:00:37]} a5 {[%emt 0:05:49]} 25. Nb7+ {[%emt 0:01:32]} Kxe6 {[%emt 0:00:31]} 26. Nxa5 {[%emt 0:00:25]} Bd7 {[%emt 0:03:46]} 27. Nb3 {[%emt 0:01:07]} Ra8 {[%emt 0:02:55]} 28. Kb2 {[%emt 0:01:30]} Nb6 {[%emt 0:03:46]} 29. Rg1 {[%emt 0:02:31]} Na4+ {[%emt 0:01:04]} 30. Kc1 {[%emt 0:00:37]} Nc3 {[%emt 0:03:54]} 31. Bc4+ {[%emt 0:01:45]} Kd6 {[%emt 0:01:36]} 32. Re1 {[%emt 0:00:53]} Nb5 {[%emt 0:02:23]} 33. Nc5 {[%emt 0:01:14]} Bc8 {[%emt 0:04:00]} 34. Re8 {[%emt 0:01:00]} Na7 {[%emt 0:02:24]} 35. a4 {[%emt 0:01:44]} f4 {[%emt 0:02:07]} 36. Kd2 {[%emt 0:04:00]} g5 {[%emt 0:00:38]} 37. Kc3 {[%emt 0:02:52]} h5 {[%emt 0:00:39]} 38. Be6 {[%emt 0:02:58]} Ke5 {[%emt 0:03:25]} 39. Bxc8+ {[%emt 0:00:37]} Kf6 {[%emt 0:00:22]} 40. Bd7 {[%emt 0:01:30]} Rxe8 {[%emt 0:00:07]} 41. Bxe8 {[%emt 0:30:07]} h4 {[%emt 0:30:19]} 42. Bd7 {[%emt 0:00:55]} Ke7 {[%emt 0:00:24]} 43. Kd4 {[%emt 0:00:56]} Kd8 {[%emt 0:00:11]} 44. Ke5 {[%emt 0:00:20]} Nc8 {[%emt 0:00:09]} 45. Bxc8 {[%emt 0:00:08]} Kxc8 {[%emt 0:00:03]} 46. Kf5 {[%emt 0:00:19]} 1-0

[Event "GER-chT Youth Countries 2018"]
[Site "Wurzburg"]
[Date "2018.10.05"]
[Round "5"]
[White "Reuter, Elisa"]
[Black "Werner, Denis"]
[Result "1-0"]
[ECO "B35"]
[WhiteElo "1786"]
[BlackElo "1817"]
[Annotator "NA RC"]
[PlyCount "143"]
[EventDate "2018.10.03"]
[EventType "team-tourn"]
[EventCountry "GER"]
[SourceTitle "playchess.com"]
[Source "ChessBase"]
[SourceQuality "1"]
[TimeControl "40/5400+30:1800+30"]

1. e4 {[%emt 0:00:00]} c5 {[%emt 0:00:12]} 2. Nf3 {[%emt 0:00:00]} Nc6 {[%emt 0:00:42]} 3. d4 {[%emt 0:00:00]} cxd4 {[%emt 0:00:40]} 4. Nxd4 {[%emt 0:00:00]} g6 {[%emt 0:00:48]} 5. Nc3 {[%emt 0:00:00]} Bg7 {[%emt 0:00:49]} 6. Be3 {[%emt 0:00:00]} Nf6 {[%emt 0:01:03]} 7. Bc4 {[%emt 0:00:03]} O-O {[%emt 0:01:14]} 8. Bb3 {[%emt 0:00:10]} d6 {[%emt 0:00:39]} 9. f3 {[%emt 0:04:41]} Bd7 {[%emt 0:01:42]} 10. Qd2 {[%emt 0:00:42]} Nxd4 {[%emt 0:02:46]} 11. Bxd4 {[%emt 0:00:11]} b5 {[%emt 0:01:48]} 12. O-O {[%emt 0:03:00]} a5 {[%emt 0:02:01]} 13. a3 {[%emt 0:00:46] B77: Sicilian Dragon: Yugoslav Attack, 9 Bc4 sidelines} Qc7 {[%emt 0:04:06]} (13... Bc6 14. Rfe1 Rb8 15. Kh1 e6 16. Nd1 a4 17. Ba2 e5 18. Bc3 d5 19. Ba5 Qd7 20. Nc3 dxe4 21. Qxd7 Bxd7 22. Nxe4 Nxe4 23. fxe4 Bc6 24. Rad1 Ra8 25. Bc3 Rad8 26. Bb4 Rxd1 {½-½ (26) Ljubicic,L (2592)-Cruzado Duenas,C (2569) ICCF email 2016}) 14. a4 {[%emt 0:04:48]} bxa4 $146 {[%emt 0:03:29]} ({Predecessor:} 14... b4 15. Ne2 e5 16. Be3 Be6 17. Bxe6 fxe6 18. c3 b3 19. Nc1 Rab8 20. Ra3 d5 21. Rxb3 dxe4 22. Rxb8 Rxb8 23. fxe4 {1-0 (42) Abrahamyan,T (2343)-Gutman,J (2107) Beverly Hills 2011}) 15. Nxa4 {[%emt 0:00:35]} Be6 {[%emt 0:02:50]} 16. Bb6 {[%emt 0:02:57]} Qb7 {[%emt 0:02:43]} 17. Bxe6 {[%emt 0:06:00]} fxe6 {[%emt 0:00:44]} 18. Bd4 {[%emt 0:00:29]} Qc7 {[%emt 0:04:05]} 19. Qc3 $11 {[%emt 0:04:45]} Qxc3 {[%emt 0:01:45]} 20. Bxc3 {[%emt 0:00:14]} Nd7 {[%emt 0:01:21]} 21. Bxg7 {[%emt 0:01:20]} Kxg7 {[%emt 0:00:43]} 22. Ra2 {[%emt 0:00:50]} Rfb8 {[%emt 0:01:47]} 23. Rfa1 {[%emt 0:00:20]} Kf6 {[%emt 0:00:58]} 24. Kf2 {[%emt 0:00:13]} Nb6 {[%emt 0:01:43]} 25. b3 {[%emt 0:00:55]} Nxa4 {[%emt 0:01:22]} 26. Rxa4 {[%emt 0:00:09]} Rc8 {[%emt 0:00:56]} 27. R1a2 {[%emt 0:00:11]} Ra6 {[%emt 0:03:38]} 28. Ke2 {[%emt 0:00:09]} Rac6 {[%emt 0:00:58]} 29. Kd2 {[%emt 0:00:13]} Ke5 {[%emt 0:01:12]} 30. Rxa5+ {[%emt 0:00:06]} Kf4 {[%emt 0:01:29]} 31. Ra7 {[%emt 0:01:50]} R6c7 {[%emt 0:00:38]} 32. b4 {[%emt 0:01:44]} Ke5 {[%emt 0:00:53]} 33. b5 {[%emt 0:05:04]} Rc5 {[%emt 0:01:21]} 34. Rxe7 {[%emt 0:07:08]} Rxb5 {[%emt 0:00:15]} 35. Rxh7 {[%emt 0:00:11]} Rb1 36. Rh3 {[%emt 0:03:21]} Kf6 {[%emt 0:04:28]} 37. Rg3 {[%emt 0:01:41]} Rh1 {[%emt 0:00:28]} 38. h3 {[%emt 0:00:20]} g5 {[%emt 0:00:48]} 39. Ra5 {[%emt 0:01:26]} Rf1 {[%emt 0:00:30]} 40. Raxg5 {[%emt 0:01:45]} Rf2+ {[%emt 0:00:35]} 41. Ke3 {[%emt 0:30:29]} Rcxc2 {[%emt 0:30:13]} 42. Rg6+ {[%emt 0:01:25]} Ke7 {[%emt 0:00:12]} 43. Kf4 {[%emt 0:02:59]} Rc5 {[%emt 0:01:41]} 44. Rg7+ {[%emt 0:01:18]} Kf8 {[%emt 0:00:32]} 45. Rg8+ {[%emt 0:00:40]} Kf7 {[%emt 0:00:11]} 46. R3g7+ {[%emt 0:00:37]} Kf6 {[%emt 0:00:12]} 47. Rg6+ {[%emt 0:00:06]} Kf7 {[%emt 0:00:05]} 48. R8g7+ {[%emt 0:00:16]} Kf8 {[%emt 0:00:08]} 49. Rd7 {[%emt 0:01:18]} Rd2 {[%emt 0:01:49]} 50. Rxe6 {[%emt 0:00:37]} Rxg2 {[%emt 0:00:15]} 51. Rdxd6 {[%emt 0:00:14]} Rf2 {[%emt 0:00:56]} 52. Kg3 {[%emt 0:00:36]} Rf1 {[%emt 0:00:25]} 53. Rf6+ {[%emt 0:00:38]} Kg7 {[%emt 0:00:23]} 54. Rf4 {[%emt 0:02:28]} Rg1+ {[%emt 0:01:10]} 55. Kh4 {[%emt 0:00:43]} Kh7 {[%emt 0:00:10]} 56. Rg4 {[%emt 0:00:53]} Rf1 {[%emt 0:00:38]} 57. Kg3 {[%emt 0:02:44]} Rg1+ {[%emt 0:00:19]} 58. Kf4 {[%emt 0:00:00]} Rh1 {[%emt 0:00:15]} 59. Rd5 {[%emt 0:01:29]} Rxd5 {[%emt 0:00:41]} 60. exd5 {[%emt 0:00:06]} Rxh3 {[%emt 0:00:10]} 61. Rg5 {[%emt 0:00:55]} Rh1 {[%emt 0:00:33]} 62. Ke5 {[%emt 0:00:36]} Kh6 {[%emt 0:00:33]} 63. Rg4 {[%emt 0:00:21]} Re1+ {[%emt 0:00:44]} 64. Re4 {[%emt 0:00:11]} Rf1 {[%emt 0:00:42]} 65. f4 {[%emt 0:00:08]} Kg7 {[%emt 0:00:10]} 66. Ke6 {[%emt 0:00:31]} Kf8 {[%emt 0:00:21]} 67. f5 {[%emt 0:00:29]} Rd1 {[%emt 0:00:23]} 68. f6 {[%emt 0:00:24]} Rd2 {[%emt 0:00:09]} 69. d6 {[%emt 0:00:49]} Rd1 {[%emt 0:00:31]} 70. d7 {[%emt 0:00:22]} Rd2 {[%emt 0:00:08]} 71. Re5 {[%emt 0:00:29]} Kg8 {[%emt 0:01:08]} 72. Ke7 {[%emt 0:00:11]} 1-0

[Event "GER-chT Youth Countries 2018"]
[Site "Wurzburg"]
[Date "2018.10.05"]
[Round "5"]
[White "Roessel, Gino"]
[Black "Schwegler, Jelena"]
[Result "1-0"]
[ECO "C90"]
[WhiteElo "1778"]
[BlackElo "1496"]
[Annotator "NA"]
[PlyCount "31"]
[EventDate "2018.10.03"]
[EventType "team-tourn"]
[EventCountry "GER"]
[SourceTitle "playchess.com"]
[Source "ChessBase"]
[SourceQuality "1"]
[TimeControl "40/5400+30:1800+30"]

1. e4 {[%emt 0:00:00]} e5 {[%emt 0:00:00]} 2. Nf3 {[%emt 0:00:00]} Nc6 {[%emt 0:00:00]} 3. Bb5 {[%emt 0:00:00]} a6 {[%emt 0:00:00]} 4. Ba4 {[%emt 0:00:09]} Nf6 {[%emt 0:00:14]} 5. d3 {[%emt 0:01:03]} b5 {[%emt 0:00:23]} 6. Bb3 {[%emt 0:00:05]} Be7 {[%emt 0:03:39]} 7. c3 {[%emt 0:01:58]} d6 {[%emt 0:01:34]} 8. O-O {[%emt 0:01:24]} O-O {[%emt 0:00:11]} 9. Re1 {[%emt 0:01:32]} Re8 {[%emt 0:06:25]} 10. Nbd2 {[%emt 0:02:28]} Bb7 {[%emt 0:03:22]} 11. Nf1 {[%emt 0:01:32]} Bf8 {[%emt 0:04:17]} 12. Ng5 {[%emt 0:03:16]} d5 {[%emt 0:14:32]} 13. exd5 {[%emt 0:01:23]} Nxd5 {[%emt 0:00:17]} 14. Qf3 {[%emt 0:01:58]} Na5 15. Qxf7+ {[%emt 0:01:43]} Kh8 {[%emt 0:18:08]} 16. Qh5 {[%emt 0:00:09]} 1-0

[Event "GER-chT Youth Countries 2018"]
[Site "Wurzburg"]
[Date "2018.10.05"]
[Round "5"]
[White "Kluehs, Gustaf"]
[Black "Wildermuth, Nikolas Karl"]
[Result "1/2-1/2"]
[ECO "A45"]
[WhiteElo "1775"]
[BlackElo "1539"]
[Annotator "NA RC"]
[PlyCount "64"]
[EventDate "2018.10.03"]
[EventType "team-tourn"]
[EventCountry "GER"]
[SourceTitle "playchess.com"]
[Source "ChessBase"]
[SourceQuality "1"]
[TimeControl "40/5400+30:1800+30"]

1. d4 {[%emt 0:00:00]} Nf6 {[%emt 0:00:00]} 2. Nd2 {[%emt 0:00:00]} d5 {[%emt 0:00:00]} 3. Ngf3 {[%emt 0:00:00]} b6 {[%emt 0:00:30]} 4. e3 {[%emt 0:00:02]} Bb7 {[%emt 0:00:08]} 5. Bd3 {[%emt 0:00:07]} e6 {[%emt 0:00:07]} 6. O-O {[%emt 0:00:10]} Be7 {[%emt 0:01:12]} 7. b3 {[%emt 0:00:19]} O-O {[%emt 0:00:13]} 8. Bb2 {[%emt 0:00:06]} Nbd7 {[%emt 0:00:21]} 9. Qe2 {[%emt 0:00:10]} c5 {[%emt 0:00:29]} 10. c4 {[%emt 0:00:07]} Rc8 {[%emt 0:00:22]} 11. Rac1 {[%emt 0:00:18]} Ne4 {[%emt 0:01:39]} 12. Rfd1 {[%emt 0:01:46]} Bf6 {[%emt 0:03:47]} 13. Ne5 {[%emt 0:06:12]} Qe7 {[%emt 0:05:08]} 14. Ndf3 {[%emt 0:01:45]} Rfd8 {[%emt 0:03:11]} 15. Nxd7 {[%emt 0:11:50]} Rxd7 {[%emt 0:00:07]} 16. dxc5 {[%emt 0:02:47]} Bxb2 {[%emt 0:01:09]} 17. Qxb2 {[%emt 0:00:17]} Nxc5 {[%emt 0:00:46]} 18. cxd5 Rxd5 {[%emt 0:03:28]} 19. Be2 {[%emt 0:06:57]} Rcd8 {[%emt 0:02:55]} 20. Rxd5 {[%emt 0:00:52]} Rxd5 {[%emt 0:02:53]} 21. b4 {[%emt 0:02:20]} Nd3 {[%emt 0:03:04]} 22. Bxd3 {[%emt 0:01:13]} Rxd3 {[%emt 0:02:10]} 23. Qc2 {[%emt 0:02:37]} Rd6 {[%emt 0:01:12]} 24. a3 {[%emt 0:03:39]} Rc6 {[%emt 0:00:24]} 25. Qd2 {[%emt 0:00:31]} Rxc1+ {[%emt 0:00:28]} 26. Qxc1 {[%emt 0:00:05]} f6 {[%emt 0:01:03]} 27. Nd4 {[%emt 0:27:30]} Qd7 {[%emt 0:02:25]} 28. f3 {[%emt 0:01:11]} e5 {[%emt 0:01:44]} 29. Qc4+ {[%emt 0:01:29]} Bd5 {[%emt 0:01:21]} 30. Qb5 {[%emt 0:00:08]} Be6 {[%emt 0:02:29]} 31. Qxd7 Bxd7 {[%emt 0:00:07]} 32. Ne2 {[%emt 0:00:31]} Kf7 {[%emt 0:00:27]} 1/2-1/2

[Event "GER-chT Youth Countries 2018"]
[Site "Wurzburg"]
[Date "2018.10.05"]
[Round "5"]
[White "Schnabel, Luise"]
[Black "Zell, Mirjam"]
[Result "1-0"]
[ECO "C68"]
[WhiteElo "1753"]
[BlackElo "1797"]
[Annotator "NA RC"]
[PlyCount "93"]
[EventDate "2018.10.03"]
[EventType "team-tourn"]
[EventCountry "GER"]
[SourceTitle "playchess.com"]
[Source "ChessBase"]
[SourceQuality "1"]
[TimeControl "40/5400+30:1800+30"]

1. e4 {[%emt 0:00:00]} e5 {[%emt 0:00:00]} 2. Nf3 {[%emt 0:00:00]} Nc6 {[%emt 0:00:00]} 3. Bb5 {[%emt 0:00:00]} a6 {[%emt 0:00:00]} 4. Bxc6 {[%emt 0:00:17]} dxc6 {[%emt 0:00:10]} 5. O-O {[%emt 0:00:13]} Bd6 {[%emt 0:00:32]} 6. d4 {[%emt 0:01:01]} exd4 {[%emt 0:00:53]} 7. Qxd4 {[%emt 0:01:12]} f6 {[%emt 0:02:07]} 8. Be3 {[%emt 0:01:34]} Ne7 {[%emt 0:01:08]} 9. Nbd2 {[%emt 0:02:55]} Be6 {[%emt 0:01:33]} 10. Qc3 {[%emt 0:01:40]} Ng6 {[%emt 0:01:17]} 11. Nd4 {[%emt 0:05:16]} Qe7 {[%emt 0:00:37]} 12. Nxe6 {[%emt 0:12:47]} Qxe6 {[%emt 0:00:10]} 13. Qb3 {[%emt 0:01:53]} Qxb3 {[%emt 0:01:24]} 14. Nxb3 {[%emt 0:00:57]} O-O-O {[%emt 0:00:38]} 15. Rad1 {[%emt 0:06:23]} Rhe8 {[%emt 0:02:24]} 16. f3 {[%emt 0:01:57]} Ne5 {[%emt 0:08:20]} 17. Kh1 {[%emt 0:09:32]} Nc4 {[%emt 0:14:18]} 18. Bc1 {[%emt 0:02:03]} Be5 {[%emt 0:07:26]} 19. c3 {[%emt 0:02:08]} b6 20. Nd4 {[%emt 0:12:43]} c5 {[%emt 0:06:16]} 21. Nc2 Rxd1 {[%emt 0:06:19]} 22. Rxd1 {[%emt 0:05:30]} Rd8 23. Rxd8+ {[%emt 0:03:11]} Kxd8 {[%emt 0:00:36]} 24. b3 {[%emt 0:00:23]} Na5 {[%emt 0:05:32]} 25. Bd2 {[%emt 0:02:31]} Nc6 {[%emt 0:01:33]} 26. g3 {[%emt 0:01:42]} Ne7 {[%emt 0:03:58]} 27. Ne3 {[%emt 0:02:04]} c6 {[%emt 0:02:25]} 28. Kg2 {[%emt 0:04:25]} b5 {[%emt 0:04:45]} 29. f4 {[%emt 0:03:01]} Bc7 {[%emt 0:00:20]} 30. Kf3 {[%emt 0:04:39]} Kd7 {[%emt 0:01:48]} 31. h3 {[%emt 0:04:02]} h5 {[%emt 0:04:23]} 32. f5 {[%emt 0:02:27]} Ke8 33. Ng2 {[%emt 0:01:16]} g5 {[%emt 0:11:42]} 34. fxg6 {[%emt 0:03:45]} Nxg6 {[%emt 0:00:07]} 35. Nf4 {[%emt 0:00:32]} Nxf4 {[%emt 0:01:24]} 36. Bxf4 {[%emt 0:00:50]} Ba5 {[%emt 0:03:54]} 37. Bd2 {[%emt 0:00:11]} Bc7 {[%emt 0:00:54]} 38. g4 {[%emt 0:01:39]} hxg4+ {[%emt 0:00:17]} 39. Kxg4 {[%emt 0:00:25]} Be5 {[%emt 0:01:08]} 40. Kf5 {[%emt 0:01:18]} Kf7 {[%emt 0:01:09]} 41. h4 {[%emt 0:03:51]} Bd6 {[%emt 0:01:35]} 42. h5 {[%emt 0:01:59]} Bf8 {[%emt 0:01:09]} 43. h6 {[%emt 0:03:21]} a5 {[%emt 0:01:23]} 44. c4 {[%emt 0:07:10]} b4 {[%emt 0:11:44]} 45. Be3 {[%emt 0:03:12]} Be7 {[%emt 0:03:56]} 46. h7 {[%emt 0:01:55]} Kg7 {[%emt 0:01:03]} 47. Ke6 {[%emt 0:00:43]} 1-0

[Event "GER-chT Youth Countries 2018"]
[Site "Wurzburg"]
[Date "2018.10.05"]
[Round "5"]
[White "Liu, Sijia Anna"]
[Black "Metzdorf, Matteo"]
[Result "0-1"]
[ECO "C11"]
[WhiteElo "1730"]
[BlackElo "1806"]
[Annotator "NA RC"]
[PlyCount "90"]
[EventDate "2018.10.03"]
[EventType "team-tourn"]
[EventCountry "GER"]
[SourceTitle "playchess.com"]
[Source "ChessBase"]
[SourceQuality "1"]
[TimeControl "40/5400+30:1800+30"]

1. e4 {[%emt 0:00:00]} e6 {[%emt 0:00:00]} 2. d4 {[%emt 0:00:00]} d5 {[%emt 0:00:00]} 3. Nc3 {[%emt 0:00:00]} Nf6 {[%emt 0:00:00]} 4. Bg5 {[%emt 0:00:00]} dxe4 {[%emt 0:00:00]} 5. Nxe4 {[%emt 0:00:15]} Be7 {[%emt 0:00:08]} 6. Bxf6 {[%emt 0:00:16]} gxf6 {[%emt 0:00:07]} 7. Nf3 {[%emt 0:00:20]} f5 {[%emt 0:00:11]} 8. Nc3 {[%emt 0:00:24]} a6 {[%emt 0:00:23]} 9. Be2 {[%emt 0:03:50]} b5 {[%emt 0:00:45]} 10. O-O {[%emt 0:03:05]} Bb7 {[%emt 0:03:14]} 11. Re1 {[%emt 0:02:05]} Qd6 {[%emt 0:03:01]} 12. Ne5 {[%emt 0:03:20]} Nc6 {[%emt 0:04:04]} 13. Bf3 {[%emt 0:05:22]} Rg8 {[%emt 0:07:05]} 14. a3 $11 {[%emt 0:15:24]} ({Better is} 14. Bxc6+ $16 Bxc6 {[#]} 15. d5 $1 {[%mdl 512]} Bxd5 16. Nxd5 exd5 17. Qf3) 14... Bf6 {[%emt 0:12:20]} 15. Nxc6 {[%emt 0:02:00]} Bxc6 {[%emt 0:00:48]} 16. Bxc6+ {[%emt 0:00:21]} Qxc6 {[%emt 0:00:29]} 17. d5 {[%emt 0:00:19]} Qb7 {[%emt 0:08:11]} 18. Qd3 {[%emt 0:05:11]} O-O-O {[%emt 0:02:46]} 19. Rad1 {[%emt 0:05:28]} Bxc3 {[%emt 0:04:07]} 20. Qxc3 {[%emt 0:00:58]} Rxd5 {[%emt 0:00:47]} 21. f3 {[%emt 0:03:58]} Qb6+ {[%emt 0:03:19]} 22. Kh1 {[%emt 0:01:33]} Qf2 {[%emt 0:01:58]} 23. g3 {[%emt 0:01:07]} Rc5 {[%emt 0:01:54]} 24. Qe3 {[%emt 0:04:07]} Rxc2 {[%emt 0:01:12]} 25. Qxf2 {[%emt 0:00:27]} Rxf2 {[%emt 0:00:06]} 26. Rc1 {[%emt 0:01:02]} Rxb2 {[%emt 0:01:19]} 27. Rc6 {[%emt 0:00:33]} Kb7 {[%emt 0:01:08]} 28. Rc3 {[%emt 0:00:39]} Rd8 {[%emt 0:00:43]} 29. Rec1 {[%emt 0:00:24]} Rd7 {[%emt 0:00:33]} 30. Kg1 {[%emt 0:01:31]} Rbd2 {[%emt 0:00:37]} 31. h4 {[%emt 0:01:34]} Rd1+ {[%emt 0:00:11]} 32. Rxd1 {[%emt 0:00:26]} Rxd1+ {[%emt 0:00:07]} 33. Kf2 {[%emt 0:00:05]} Kb6 {[%emt 0:00:38]} 34. Ke2 {[%emt 0:00:17]} Rd5 {[%emt 0:00:13]} 35. Ke3 {[%emt 0:01:07]} c5 {[%emt 0:00:13]} 36. Kf4 {[%emt 0:00:27]} c4 {[%emt 0:00:20]} 37. Ke3 {[%emt 0:01:02]} Kc5 {[%emt 0:00:32]} 38. Kf4 {[%emt 0:02:14]} Rd3 {[%emt 0:00:37]} 39. Rc2 {[%emt 0:00:35]} Rxa3 {[%emt 0:00:23]} 40. g4 {[%emt 0:00:32]} fxg4 {[%emt 0:00:47]} 41. fxg4 {[%emt 0:30:15]} b4 {[%emt 0:30:24]} 42. Kg5 {[%emt 0:00:12]} Rc3 {[%emt 0:01:22]} 43. Rb2 {[%emt 0:00:27]} b3 {[%emt 0:00:26]} 44. Kh6 {[%emt 0:00:15]} Rc2 {[%emt 0:00:15]} 45. Kxh7 {[%emt 0:00:24]} Rxb2 {[%emt 0:00:15]} 0-1

[Event "GER-chT Youth Countries 2018"]
[Site "Wurzburg"]
[Date "2018.10.05"]
[Round "5"]
[White "Oberhofer, Marie"]
[Black "Wagner, Margarethe"]
[Result "0-1"]
[ECO "B93"]
[WhiteElo "1724"]
[BlackElo "1643"]
[Annotator "NA RC"]
[PlyCount "84"]
[EventDate "2018.10.03"]
[EventType "team-tourn"]
[EventCountry "GER"]
[SourceTitle "playchess.com"]
[Source "ChessBase"]
[SourceQuality "1"]
[TimeControl "40/5400+30:1800+30"]

1. e4 {[%emt 0:00:00]} c5 {[%emt 0:00:00]} 2. Nf3 {[%emt 0:00:00]} d6 {[%emt 0:00:00]} 3. d4 {[%emt 0:00:00]} cxd4 {[%emt 0:00:00]} 4. Nxd4 {[%emt 0:00:00]} Nf6 {[%emt 0:00:06]} 5. Nc3 {[%emt 0:00:00]} a6 {[%emt 0:00:18]} 6. f4 {[%emt 0:00:00]} e5 {[%emt 0:00:31]} 7. Nf3 {[%emt 0:01:26]} Nbd7 {[%emt 0:02:24]} 8. Be3 {[%emt 0:05:41]} Be7 {[%emt 0:02:35]} 9. f5 {[%emt 0:03:30]} b5 {[%emt 0:03:15]} 10. a3 {[%emt 0:00:19]} Bb7 {[%emt 0:00:37]} 11. Bd3 {[%emt 0:07:44]} O-O {[%emt 0:04:00]} 12. h3 {[%emt 0:04:35]} d5 {[%emt 0:02:09]} 13. exd5 {[%emt 0:03:15]} Nxd5 {[%emt 0:01:28]} 14. Nxd5 {[%emt 0:09:01]} Bxd5 {[%emt 0:00:16]} 15. Be2 {[%emt 0:00:12]} Bh4+ {[%emt 0:09:55]} 16. Nxh4 {[%emt 0:12:02]} Qxh4+ {[%emt 0:00:17]} 17. Bf2 {[%emt 0:01:47]} Qe4 {[%emt 0:00:37]} 18. Rg1 {[%emt 0:12:38]} Nf6 19. Qd3 {[%emt 0:02:01]} Qxd3 {[%emt 0:18:22]} 20. Bxd3 {[%emt 0:00:29]} e4 {[%emt 0:00:53]} 21. Be2 {[%emt 0:01:03]} Rac8 {[%emt 0:02:01]} 22. c3 {[%emt 0:00:25]} Rfd8 {[%emt 0:05:11]} 23. Bd4 {[%emt 0:02:02]} Nd7 {[%emt 0:02:22]} 24. g4 {[%emt 0:05:12]} Nc5 {[%emt 0:01:07]} 25. Rd1 {[%emt 0:02:15]} Na4 {[%emt 0:02:57]} 26. Rb1 {[%emt 0:06:34]} Ba2 {[%emt 0:02:04]} 27. Ra1 {[%emt 0:00:11]} Bb3 {[%emt 0:00:11]} 28. Rb1 {[%emt 0:07:01]} Bc2 {[%emt 0:05:53]} 29. Rc1 {[%emt 0:00:33]} Bd3 {[%emt 0:00:49]} 30. Bxd3 {[%emt 0:01:38]} exd3 {[%emt 0:00:02]} 31. Kd2 {[%emt 0:02:28]} Nxb2 {[%emt 0:01:35]} 32. Rb1 {[%emt 0:00:19]} Nc4+ {[%emt 0:03:05]} 33. Kxd3 {[%emt 0:00:29]} Nxa3 {[%emt 0:00:46]} 34. Ra1 {[%emt 0:00:59]} b4 {[%emt 0:00:32]} 35. Ke4 {[%emt 0:02:14]} Nb5 {[%emt 0:02:17]} 36. Rxa6 {[%emt 0:03:17]} bxc3 {[%emt 0:01:00]} 37. Be3 {[%emt 0:01:58]} c2 {[%emt 0:06:53]} 38. Rc1 {[%emt 0:01:48]} Re8+ {[%emt 0:00:45]} 39. Kd3 {[%emt 0:01:27]} Rc3+ {[%emt 0:00:42]} 40. Kd2 {[%emt 0:00:40]} Rcxe3 {[%emt 0:00:16]} 41. Rxc2 {[%emt 0:30:40]} Re2+ {[%emt 0:31:47]} 42. Kd3 {[%emt 0:01:03]} R8e3+ {[%emt 0:00:53] Kd4} 0-1